[Event "US Open 2021"]
[Site "Crowne Plaza Cherry Hill, United States"]
[Date "2021.08.06"]
[Round "7.1"]
[White "Lenderman, Aleksandre"]
[Black "Niemann, Hans"]
[Result "1-0"]
[TimeControl "40/100;SD/30;+30"]
[WhiteTitle "GM"]
[BlackTitle "GM"]
[WhiteElo "2703"]
[BlackElo "2648"]

1. d4 {[%clk 01:39:59]} Nf6 {[%clk 01:40:50]} {[%emt 00:00:16]} 2. Bg5 {[%clk
01:40:20]} {[%emt 00:00:35]} d5 {[%clk 01:39:50]} {[%emt 00:00:55]} 3. e3
{[%clk 01:40:37]} {[%emt 00:00:31]} c5 {[%clk 01:34:14]} {[%emt 00:05:54]} 4.
Bxf6 {[%clk 01:40:39]} {[%emt 00:00:33]} gxf6 {[%clk 01:34:35]} 5. dxc5 {[%clk
01:40:58]} {[%emt 00:00:12]} e6 {[%clk 01:33:50]} {[%emt 00:01:16]} 6. Nf3
{[%clk 01:41:18]} {[%emt 00:00:12]} Bxc5 {[%clk 01:32:15]} {[%emt 00:02:21]} 7.
Be2 {[%clk 01:41:41]} Qb6 {[%clk 01:27:05]} {[%emt 00:06:00]} 8. c4 {[%clk
01:41:45]} dxc4 {[%clk 01:25:16]} {[%emt 00:02:13]} 9. Nbd2 {[%clk 01:41:37]}
{[%emt 00:00:38]} c3 {[%clk 01:25:27]} {[%emt 00:00:18]} 10. bxc3 {[%clk
01:41:48]} {[%emt 00:00:36]} Be7 {[%clk 01:20:27]} {[%emt 00:05:11]} 11. Nd4
{[%clk 01:38:05]} {[%emt 00:04:16]} a6 {[%clk 01:14:25]} {[%emt 00:06:40]} 12.
Rb1 {[%clk 01:33:47]} {[%emt 00:05:10]} Qc7 {[%clk 01:14:40]} 13. Qa4+ {[%clk
01:33:09]} {[%emt 00:01:20]} Nd7 {[%clk 01:10:35]} {[%emt 00:04:03]} 14. N4f3
{[%clk 01:28:53]} {[%emt 00:04:43]} f5 {[%clk 01:05:02]} {[%emt 00:06:13]} 15.
e4 {[%clk 01:21:15]} {[%emt 00:08:03]} Qxc3 {[%clk 01:03:39]} {[%emt 00:01:57]}
16. exf5 {[%clk 01:19:51]} {[%emt 00:01:49]} exf5 {[%clk 01:03:51]} {[%emt
00:00:48]} 17. O-O {[%clk 01:19:29]} {[%emt 00:00:35]} O-O {[%clk 01:04:09]} 18.
Rfc1 {[%clk 01:17:13]} {[%emt 00:03:18]} Nc5 {[%clk 01:04:21]} 19. Qf4 {[%clk
01:15:48]} {[%emt 00:01:37]} Qg7 {[%clk 01:02:03]} {[%emt 00:02:49]} 20. Nc4
{[%clk 01:08:56]} {[%emt 00:07:28]} Be6 {[%clk 00:55:44]} {[%emt 00:06:48]} 21.
Ne3 {[%clk 01:07:22]} {[%emt 00:02:06]} Qf6 {[%clk 00:54:37]} {[%emt 00:01:30]}
22. Nd4 {[%clk 00:59:37]} {[%emt 00:08:27]} Rfd8 {[%clk 00:43:42]} {[%emt
00:11:18]} 23. Ndxf5 {[%clk 00:58:15]} {[%emt 00:02:13]} Bf8 {[%clk 00:42:49]}
{[%emt 00:01:17]} 24. Rxc5 {[%clk 00:36:10]} {[%emt 00:22:17]} Bxc5 {[%clk
00:43:07]} {[%emt 00:00:45]} 25. Ng4 {[%clk 00:36:30]} Qg6 {[%clk 00:41:05]}
{[%emt 00:02:09]} 26. Rxb7 {[%clk 00:33:04]} {[%emt 00:03:55]} Bf8 {[%clk
00:39:26]} {[%emt 00:02:08]} 27. Nfh6+ {[%clk 00:21:52]} {[%emt 00:11:44]} Kh8
{[%clk 00:36:20]} {[%emt 00:03:33]} 28. Nxf7+ {[%clk 00:21:10]} {[%emt
00:01:13]} Bxf7 {[%clk 00:36:29]} {[%emt 00:00:23]} 29. Ne5 {[%clk 00:21:29]}
{[%emt 00:00:33]} 1-0

[Event "US Open 2021"]
[Site "Crowne Plaza Cherry Hill, United States"]
[Date "2021.08.06"]
[Round "7.2"]
[White "Sorokin, Aleksey"]
[Black "Gareyev, Timur"]
[Result "1/2-1/2"]
[TimeControl "40/100;SD/30;+30"]
[WhiteTitle "GM"]
[BlackTitle "GM"]
[WhiteElo "2628"]
[BlackElo "2692"]

1. d4 {[%clk 01:40:57]} Nf6 {[%clk 01:31:46]} {[%emt 00:09:42]} 2. c4 {[%clk
01:41:08]} e6 {[%clk 01:32:03]} {[%emt 00:00:23]} 3. Nf3 {[%clk 01:41:10]}
{[%emt 00:00:13]} b6 {[%clk 01:32:23]} 4. a3 {[%clk 01:41:15]} {[%emt
00:00:15]} Bb7 {[%clk 01:32:32]} {[%emt 00:00:27]} 5. Nc3 {[%clk 01:40:51]}
{[%emt 00:00:44]} g6 {[%clk 01:32:38]} {[%emt 00:00:36]} 6. Qc2 {[%clk
01:37:50]} {[%emt 00:03:23]} Bxf3 {[%clk 01:32:33]} {[%emt 00:00:31]} 7. gxf3
{[%clk 01:36:45]} {[%emt 00:01:36]} Nc6 {[%clk 01:25:37]} {[%emt 00:07:26]} 8.
d5 {[%clk 01:30:01]} {[%emt 00:07:33]} Nd4 {[%clk 01:23:37]} {[%emt 00:02:11]}
9. Qd1 {[%clk 01:29:45]} {[%emt 00:01:05]} c5 {[%clk 01:24:03]} 10. Bh3 {[%clk
01:18:35]} {[%emt 00:11:52]} Bg7 {[%clk 01:23:08]} {[%emt 00:01:00]} 11. e3
{[%clk 01:02:04]} {[%emt 00:17:05]} Nf5 {[%clk 01:18:49]} {[%emt 00:04:48]} 12.
dxe6 {[%clk 00:59:41]} {[%emt 00:02:56]} dxe6 {[%clk 01:17:56]} {[%emt
00:01:12]} 13. Bxf5 {[%clk 00:57:25]} {[%emt 00:03:17]} gxf5 {[%clk 01:14:36]}
{[%emt 00:03:24]} 14. Rg1 {[%clk 00:54:16]} {[%emt 00:04:08]} Qxd1+ {[%clk
01:12:41]} {[%emt 00:01:51]} 15. Kxd1 {[%clk 00:53:55]} {[%emt 00:00:51]} Rg8
{[%clk 01:11:04]} {[%emt 00:02:11]} 16. Ke2 {[%clk 00:44:41]} {[%emt 00:09:41]}
Ke7 {[%clk 01:03:36]} {[%emt 00:08:00]} 17. Bd2 {[%clk 00:43:22]} {[%emt
00:01:53]} Nd7 {[%clk 01:01:25]} {[%emt 00:03:04]} 18. f4 {[%clk 00:43:40]} Bf6
{[%clk 01:00:05]} {[%emt 00:01:31]} 19. Rxg8 {[%clk 00:43:16]} {[%emt
00:01:16]} Rxg8 {[%clk 01:00:32]} 20. Kf1 {[%clk 00:42:56]} {[%emt 00:00:35]}
Rc8 {[%clk 00:51:35]} {[%emt 00:09:29]} 1/2-1/2

[Event "US Open 2021"]
[Site "Crowne Plaza Cherry Hill, United States"]
[Date "2021.08.06"]
[Round "7.3"]
[White "Burke, John Michael"]
[Black "Schmakel, Samuel Arthur"]
[Result "1-0"]
[TimeControl "40/100;SD/30;+30"]
[WhiteTitle "GM"]
[BlackTitle "GM"]
[WhiteElo "2640"]
[BlackElo "2488"]

1. e4 {[%clk 01:40:56]} e6 {[%clk 01:40:49]} {[%emt 00:00:03]} 2. d4 {[%clk
01:41:20]} {[%emt 00:00:07]} d5 {[%clk 01:41:11]} {[%emt 00:00:06]} 3. Nc3
{[%clk 01:41:45]} {[%emt 00:00:12]} Nf6 {[%clk 01:41:33]} {[%emt 00:00:03]} 4.
Bg5 {[%clk 01:42:10]} {[%emt 00:00:04]} dxe4 {[%clk 01:41:54]} {[%emt
00:00:10]} 5. Nxe4 {[%clk 01:42:36]} {[%emt 00:00:13]} Be7 {[%clk 01:42:18]} 6.
Bxf6 {[%clk 01:43:01]} {[%emt 00:00:41]} gxf6 {[%clk 01:42:36]} 7. Qd2 {[%clk
01:42:25]} {[%emt 00:00:44]} f5 {[%clk 01:40:00]} {[%emt 00:03:14]} 8. Nc3
{[%clk 01:42:39]} {[%emt 00:00:03]} a6 {[%clk 01:38:37]} {[%emt 00:02:01]} 9.
g3 {[%clk 01:41:31]} {[%emt 00:01:39]} b5 {[%clk 01:30:26]} {[%emt 00:09:15]}
10. Bg2 {[%clk 01:41:54]} c6 {[%clk 01:30:38]} 11. Nf3 {[%clk 01:30:30]} {[%emt
00:11:34]} Nd7 {[%clk 01:26:54]} {[%emt 00:04:17]} 12. O-O-O {[%clk 01:28:32]}
{[%emt 00:02:30]} Bb7 {[%clk 01:22:55]} {[%emt 00:04:23]} 13. Qf4 {[%clk
01:22:18]} {[%emt 00:06:43]} h5 {[%clk 01:19:21]} {[%emt 00:04:16]} 14. Kb1
{[%clk 01:18:58]} {[%emt 00:03:41]} Qb6 {[%clk 00:58:29]} {[%emt 00:21:19]} 15.
Ng5 {[%clk 01:13:11]} {[%emt 00:06:30]} Rg8 {[%clk 00:49:58]} {[%emt 00:09:05]}
16. h4 {[%clk 01:12:40]} {[%emt 00:01:05]} Rg7 {[%clk 00:49:26]} {[%emt
00:00:50]} 17. Bf3 {[%clk 01:00:31]} {[%emt 00:12:29]} Nf6 {[%clk 00:45:36]}
{[%emt 00:04:24]} 18. Qe5 {[%clk 00:55:14]} {[%emt 00:05:44]} Qd8 {[%clk
00:38:53]} {[%emt 00:07:14]} 19. Rhe1 {[%clk 00:51:06]} {[%emt 00:04:38]} Qd6
{[%clk 00:37:53]} {[%emt 00:01:29]} 20. Qe2 {[%clk 00:46:57]} {[%emt 00:04:39]}
Ng4 {[%clk 00:36:50]} {[%emt 00:01:33]} 21. d5 {[%clk 00:43:48]} {[%emt
00:04:07]} cxd5 {[%clk 00:36:36]} {[%emt 00:00:16]} 22. Nxd5 {[%clk 00:42:39]}
{[%emt 00:01:39]} exd5 {[%clk 00:34:33]} {[%emt 00:02:39]} 23. Bxd5 {[%clk
00:43:01]} {[%emt 00:00:04]} Bxd5 {[%clk 00:33:12]} {[%emt 00:02:04]} 24. Rxd5
{[%clk 00:43:26]} Qc7 {[%clk 00:33:25]} {[%emt 00:00:19]} 25. Rxf5 {[%clk
00:25:34]} {[%emt 00:18:14]} O-O-O {[%clk 00:31:55]} {[%emt 00:02:07]} 26. Nxf7
{[%clk 00:24:13]} {[%emt 00:01:46]} Rd7 {[%clk 00:24:31]} {[%emt 00:07:50]} 27.
a4 {[%clk 00:22:47]} {[%emt 00:02:05]} Bf6 {[%clk 00:16:48]} {[%emt 00:08:18]}
28. Qe8+ {[%clk 00:21:50]} {[%emt 00:01:24]} Kb7 {[%clk 00:15:04]} {[%emt
00:02:03]} 29. Rc5 {[%clk 00:21:55]} {[%emt 00:00:22]} Qxc5 {[%clk 00:14:28]}
{[%emt 00:01:18]} 30. Qxd7+ {[%clk 00:22:21]} Qc7 {[%clk 00:11:47]} {[%emt
00:03:03]} 31. Qd5+ {[%clk 00:21:23]} {[%emt 00:01:37]} Ka7 {[%clk 00:11:55]}
{[%emt 00:00:13]} 32. Re8 {[%clk 00:20:02]} {[%emt 00:01:54]} bxa4 {[%clk
00:06:38]} {[%emt 00:05:43]} 33. Nd6 {[%clk 00:18:03]} {[%emt 00:02:30]} 1-0

[Event "US Open 2021"]
[Site "Crowne Plaza Cherry Hill, United States"]
[Date "2021.08.06"]
[Round "7.4"]
[White "Nyzhnyk, Illia"]
[Black "Homa, Seth"]
[Result "1/2-1/2"]
[TimeControl "40/100;SD/30;+30"]
[WhiteTitle "GM"]
[WhiteElo "2778"]
[BlackElo "2394"]

1. c4 {[%clk 01:38:23]} {[%emt 00:03:07]} e6 {[%clk 01:40:36]} 2. Nf3 {[%clk
01:38:39]} {[%emt 00:00:08]} d5 {[%clk 01:40:56]} {[%emt 00:00:13]} 3. d4
{[%clk 01:39:05]} {[%emt 00:00:03]} c6 {[%clk 01:41:01]} {[%emt 00:00:23]} 4.
Qc2 {[%clk 01:37:51]} {[%emt 00:01:47]} Nf6 {[%clk 01:38:07]} {[%emt 00:03:26]}
5. g3 {[%clk 01:36:11]} {[%emt 00:02:13]} dxc4 {[%clk 01:38:20]} {[%emt
00:00:12]} 6. Qxc4 {[%clk 01:36:36]} {[%emt 00:00:11]} b5 {[%clk 01:38:36]}
{[%emt 00:00:13]} 7. Qc2 {[%clk 01:36:19]} {[%emt 00:00:40]} Bb7 {[%clk
01:38:55]} {[%emt 00:00:29]} 8. Bg2 {[%clk 01:36:44]} Nbd7 {[%clk 01:37:00]}
{[%emt 00:02:25]} 9. Ne5 {[%clk 01:30:59]} {[%emt 00:06:04]} Nxe5 {[%clk
01:36:55]} {[%emt 00:00:48]} 10. dxe5 {[%clk 01:31:27]} {[%emt 00:00:19]} Nd5
{[%clk 01:36:58]} 11. O-O {[%clk 01:31:51]} {[%emt 00:00:04]} Be7 {[%clk
01:37:19]} {[%emt 00:00:17]} 12. Nd2 {[%clk 01:31:39]} {[%emt 00:00:32]} Qb8
{[%clk 01:19:59]} {[%emt 00:17:48]} 13. Nf3 {[%clk 01:25:44]} {[%emt 00:06:28]}
h6 {[%clk 01:17:49]} {[%emt 00:02:37]} 14. Qe4 {[%clk 01:24:57]} {[%emt
00:01:16]} c5 {[%clk 01:12:54]} {[%emt 00:05:40]} 15. a4 {[%clk 01:22:20]}
{[%emt 00:02:56]} a6 {[%clk 01:10:32]} {[%emt 00:02:53]} 16. axb5 {[%clk
01:21:20]} {[%emt 00:01:31]} axb5 {[%clk 01:10:48]} {[%emt 00:00:10]} 17. Bd2
{[%clk 01:21:46]} {[%emt 00:00:36]} O-O {[%clk 01:04:56]} {[%emt 00:06:15]} 18.
Qg4 {[%clk 01:21:57]} Kh7 {[%clk 01:05:04]} {[%emt 00:00:13]} 19. Qh5 {[%clk
01:19:32]} {[%emt 00:02:56]} Nb6 {[%clk 00:54:13]} {[%emt 00:11:38]} 20. Bf4
{[%clk 01:13:55]} {[%emt 00:05:52]} Ra4 {[%clk 00:51:22]} {[%emt 00:03:34]} 21.
Rxa4 {[%clk 01:06:57]} {[%emt 00:07:24]} Nxa4 {[%clk 00:51:49]} 22. Rd1 {[%clk
01:07:23]} Qc7 {[%clk 00:48:38]} {[%emt 00:03:56]} 23. Rd2 {[%clk 01:03:33]}
{[%emt 00:04:26]} c4 {[%clk 00:41:23]} {[%emt 00:07:24]} 24. g4 {[%clk
01:03:36]} {[%emt 00:00:24]} c3 {[%clk 00:33:50]} {[%emt 00:08:17]} 25. bxc3
{[%clk 01:03:52]} {[%emt 00:00:20]} Nxc3 {[%clk 00:34:18]} {[%emt 00:00:13]} 26.
Bf1 {[%clk 00:46:48]} {[%emt 00:17:12]} Qc4 {[%clk 00:25:22]} {[%emt 00:09:47]}
27. e3 {[%clk 00:36:09]} {[%emt 00:10:47]} Qc6 {[%clk 00:24:27]} {[%emt
00:01:52]} 28. Bg2 {[%clk 00:36:37]} Qc4 {[%clk 00:22:39]} {[%emt 00:02:03]} 29.
Bf1 {[%clk 00:36:12]} {[%emt 00:00:40]} Qc6 {[%clk 00:23:07]} {[%emt 00:00:19]}
30. Bg2 {[%clk 00:36:37]} Qc4 {[%clk 00:23:26]} 31. Bf1 {[%clk 00:36:57]}
{[%emt 00:00:50]} 1/2-1/2

[Event "US Open 2021"]
[Site "Crowne Plaza Cherry Hill, United States"]
[Date "2021.08.06"]
[Round "7.5"]
[White "Bruzon Batista, Lazaro"]
[Black "Bartell, Thomas"]
[Result "1-0"]
[TimeControl "40/100;SD/30;+30"]
[WhiteTitle "GM"]
[BlackTitle "IM"]
[WhiteElo "2725"]
[BlackElo "2511"]

1. e4 {[%clk 01:32:39]} {[%emt 00:08:07]} c6 {[%clk 01:40:50]} {[%emt
00:00:23]} 2. d4 {[%clk 01:32:41]} {[%emt 00:00:21]} d5 {[%clk 01:41:09]}
{[%emt 00:00:19]} 3. e5 {[%clk 01:33:06]} Bf5 {[%clk 01:41:31]} {[%emt
00:00:15]} 4. Nd2 {[%clk 01:33:09]} {[%emt 00:00:15]} e6 {[%clk 01:41:44]}
{[%emt 00:00:55]} 5. Nb3 {[%clk 01:33:31]} Nd7 {[%clk 01:39:48]} {[%emt
00:02:30]} 6. Nf3 {[%clk 01:33:46]} Ne7 {[%clk 01:39:53]} {[%emt 00:00:05]} 7.
Be2 {[%clk 01:33:29]} {[%emt 00:01:08]} Bg6 {[%clk 01:39:49]} {[%emt 00:00:12]}
8. O-O {[%clk 01:30:48]} {[%emt 00:03:17]} Nf5 {[%clk 01:39:56]} {[%emt
00:00:20]} 9. a4 {[%clk 01:26:57]} {[%emt 00:04:18]} Be7 {[%clk 01:38:16]}
{[%emt 00:02:34]} 10. a5 {[%clk 01:21:36]} {[%emt 00:05:37]} O-O {[%clk
01:37:15]} {[%emt 00:01:24]} 11. g4 {[%clk 01:18:21]} {[%emt 00:03:46]} Nh4
{[%clk 01:34:24]} {[%emt 00:03:48]} 12. Nxh4 {[%clk 01:18:43]} Bxh4 {[%clk
01:34:49]} 13. f4 {[%clk 01:19:07]} f5 {[%clk 01:35:11]} 14. g5 {[%clk
01:17:27]} {[%emt 00:02:35]} h6 {[%clk 01:35:10]} {[%emt 00:00:26]} 15. gxh6
{[%clk 01:17:42]} gxh6 {[%clk 01:35:30]} {[%emt 00:00:17]} 16. Kh1 {[%clk
01:14:58]} {[%emt 00:02:55]} Kh7 {[%clk 01:34:45]} {[%emt 00:02:06]} 17. Be3
{[%clk 01:09:08]} {[%emt 00:05:35]} b5 {[%clk 01:16:46]} {[%emt 00:18:43]} 18.
Nd2 {[%clk 00:58:46]} {[%emt 00:10:48]} Be7 {[%clk 01:15:35]} {[%emt 00:01:52]}
19. Rg1 {[%clk 00:58:04]} {[%emt 00:00:44]} Rg8 {[%clk 01:13:42]} {[%emt
00:02:24]} 20. Qf1 {[%clk 00:53:15]} {[%emt 00:05:24]} Qe8 {[%clk 00:48:24]}
{[%emt 00:25:43]} 21. Qh3 {[%clk 00:49:30]} {[%emt 00:04:19]} Qf7 {[%clk
00:48:29]} {[%emt 00:01:01]} 22. Rg3 {[%clk 00:47:28]} {[%emt 00:02:00]} Rg7
{[%clk 00:48:33]} {[%emt 00:00:28]} 23. Nf3 {[%clk 00:42:37]} {[%emt 00:05:32]}
Rh8 {[%clk 00:45:05]} {[%emt 00:03:50]} 24. Rag1 {[%clk 00:41:43]} {[%emt
00:01:37]} Kg8 {[%clk 00:44:19]} {[%emt 00:00:49]} 25. Nh4 {[%clk 00:38:47]}
{[%emt 00:03:50]} Bxh4 {[%clk 00:43:18]} {[%emt 00:01:12]} 26. Qxh4 {[%clk
00:39:13]} {[%emt 00:00:03]} Rhh7 {[%clk 00:43:15]} {[%emt 00:01:06]} 27. Bd2
{[%clk 00:38:37]} {[%emt 00:01:03]} Qe8 {[%clk 00:38:28]} {[%emt 00:04:43]} 28.
Bb4 {[%clk 00:35:27]} {[%emt 00:03:39]} Kh8 {[%clk 00:38:38]} {[%emt 00:00:34]}
29. R1g2 {[%clk 00:30:57]} {[%emt 00:05:06]} 1-0

[Event "US Open 2021"]
[Site "Crowne Plaza Cherry Hill, United States"]
[Date "2021.08.06"]
[Round "7.6"]
[White "Jacobson, Aaron"]
[Black "Gledura, Benjamin"]
[Result "0-1"]
[TimeControl "40/100;SD/30;+30"]
[WhiteTitle "FM"]
[BlackTitle "GM"]
[WhiteElo "2428"]
[BlackElo "2721"]

1. d4 {[%clk 01:37:33]} Nf6 {[%clk 01:40:37]} {[%emt 00:00:28]} 2. c4 {[%clk
01:37:56]} {[%emt 00:00:15]} g6 {[%clk 01:39:55]} {[%emt 00:00:59]} 3. Nc3
{[%clk 01:36:29]} {[%emt 00:01:56]} d5 {[%clk 01:40:00]} {[%emt 00:01:08]} 4.
cxd5 {[%clk 01:36:46]} Nxd5 {[%clk 01:40:23]} 5. e4 {[%clk 01:37:13]} Nxc3
{[%clk 01:40:43]} 6. bxc3 {[%clk 01:37:38]} Bg7 {[%clk 01:40:56]} {[%emt
00:00:24]} 7. Nf3 {[%clk 01:37:52]} {[%emt 00:00:06]} c5 {[%clk 01:40:58]}
{[%emt 00:00:25]} 8. Rb1 {[%clk 01:38:12]} {[%emt 00:00:32]} O-O {[%clk
01:40:35]} {[%emt 00:00:30]} 9. Be2 {[%clk 01:38:33]} {[%emt 00:00:13]} Nd7
{[%clk 01:38:20]} {[%emt 00:02:58]} 10. O-O {[%clk 01:37:22]} {[%emt 00:01:25]}
Nf6 {[%clk 01:38:05]} {[%emt 00:01:17]} 11. Bd3 {[%clk 01:36:57]} {[%emt
00:00:37]} Qc7 {[%clk 01:37:51]} {[%emt 00:00:29]} 12. Re1 {[%clk 01:34:17]}
{[%emt 00:03:13]} e6 {[%clk 01:27:45]} {[%emt 00:10:44]} 13. h3 {[%clk
01:22:08]} {[%emt 00:12:28]} b6 {[%clk 01:26:38]} {[%emt 00:01:48]} 14. a4
{[%clk 01:20:19]} {[%emt 00:02:42]} Bb7 {[%clk 01:19:14]} {[%emt 00:07:29]} 15.
a5 {[%clk 01:10:46]} {[%emt 00:09:55]} Nd7 {[%clk 01:13:02]} {[%emt 00:06:42]}
16. axb6 {[%clk 01:05:57]} {[%emt 00:05:26]} axb6 {[%clk 01:13:30]} 17. e5
{[%clk 01:04:39]} {[%emt 00:01:47]} Bd5 {[%clk 01:06:00]} {[%emt 00:08:08]} 18.
Ng5 {[%clk 00:54:04]} {[%emt 00:11:42]} Ra2 {[%clk 01:03:17]} {[%emt 00:02:47]}
19. h4 {[%clk 00:49:14]} {[%emt 00:05:50]} Rfa8 {[%clk 00:27:17]} {[%emt
00:35:58]} 20. h5 {[%clk 00:44:44]} {[%emt 00:04:52]} Ra1 {[%clk 00:26:39]}
{[%emt 00:01:17]} 21. hxg6 {[%clk 00:42:47]} {[%emt 00:02:38]} hxg6 {[%clk
00:27:08]} 22. Qg4 {[%clk 00:38:12]} {[%emt 00:05:43]} Nf8 {[%clk 00:23:51]}
{[%emt 00:03:16]} 23. Bd2 {[%clk 00:14:58]} {[%emt 00:23:13]} Rxb1 {[%clk
00:23:01]} {[%emt 00:01:45]} 24. Rxb1 {[%clk 00:15:17]} Ra3 {[%clk 00:22:47]}
{[%emt 00:00:58]} 25. Ne4 {[%clk 00:11:27]} {[%emt 00:03:45]} cxd4 {[%clk
00:17:14]} {[%emt 00:06:14]} 26. Nf6+ {[%clk 00:11:43]} {[%emt 00:00:28]} Bxf6
{[%clk 00:17:36]} 27. exf6 {[%clk 00:12:07]} Qe5 {[%clk 00:14:44]} {[%emt
00:03:08]} 28. cxd4 {[%clk 00:07:46]} {[%emt 00:04:52]} Qxf6 {[%clk 00:15:06]}
{[%emt 00:00:14]} 29. Bg5 {[%clk 00:08:05]} {[%emt 00:00:23]} Qg7 {[%clk
00:14:36]} {[%emt 00:00:42]} 30. Bf1 {[%clk 00:07:23]} {[%emt 00:01:54]} Nd7
{[%clk 00:13:33]} {[%emt 00:01:03]} 31. Bb5 {[%clk 00:06:28]} {[%emt 00:01:15]}
Nf6 {[%clk 00:13:36]} {[%emt 00:01:05]} 32. Qf4 {[%clk 00:05:46]} {[%emt
00:01:24]} Ne4 {[%clk 00:14:03]} 33. Be7 {[%clk 00:05:12]} {[%emt 00:00:50]}
Ra8 {[%clk 00:14:32]} 34. Bd3 {[%clk 00:04:46]} {[%emt 00:00:53]} f5 {[%clk
00:15:00]} 35. Bg5 {[%clk 00:02:29]} {[%emt 00:02:39]} Nxg5 {[%clk 00:11:44]}
{[%emt 00:03:52]} 36. Qxg5 {[%clk 00:02:57]} Qxd4 {[%clk 00:11:29]} {[%emt
00:00:40]} 37. Qxg6+ {[%clk 00:03:10]} Kf8 {[%clk 00:11:58]} 38. Qh6+ {[%clk
00:00:33]} {[%emt 00:03:21]} Ke7 {[%clk 00:11:29]} {[%emt 00:00:59]} 39. Qg5+
{[%clk 00:00:38]} {[%emt 00:00:16]} Kd6 {[%clk 00:11:00]} {[%emt 00:00:57]} 40.
Rd1 {[%clk 00:30:31]} {[%emt 00:00:33]} Qg4 {[%clk 00:38:27]} {[%emt 00:03:04]}
41. Qxg4 {[%clk 00:30:08]} {[%emt 00:01:11]} fxg4 {[%clk 00:35:51]} {[%emt
00:03:05]} 42. Be2 {[%clk 00:30:24]} g3 {[%clk 00:31:48]} {[%emt 00:04:32]} 43.
fxg3 {[%clk 00:30:45]} {[%emt 00:00:09]} Ra2 {[%clk 00:32:01]} {[%emt
00:00:39]} 44. Kf2 {[%clk 00:30:42]} {[%emt 00:00:09]} b5 {[%clk 00:31:39]}
{[%emt 00:01:06]} 45. Ke3 {[%clk 00:30:57]} {[%emt 00:00:19]} Ra3+ {[%clk
00:30:10]} {[%emt 00:01:55]} 46. Kf2 {[%clk 00:31:01]} {[%emt 00:00:18]} b4
{[%clk 00:30:15]} {[%emt 00:00:20]} 47. g4 {[%clk 00:31:27]} {[%emt 00:00:41]}
b3 {[%clk 00:26:59]} {[%emt 00:03:06]} 48. g5 {[%clk 00:29:02]} {[%emt
00:02:56]} Ke5 {[%clk 00:23:53]} {[%emt 00:04:09]} 49. g6 {[%clk 00:28:45]}
{[%emt 00:00:21]} Kf6 {[%clk 00:24:12]} {[%emt 00:00:05]} 50. Bd3 {[%clk
00:28:20]} {[%emt 00:00:53]} Ra2+ {[%clk 00:16:34]} {[%emt 00:09:07]} 51. Ke3
{[%clk 00:28:31]} Rxg2 {[%clk 00:16:59]} 52. Kd4 {[%clk 00:27:53]} {[%emt
00:00:34]} Rg4+ {[%clk 00:17:26]} {[%emt 00:00:11]} 53. Kc3 {[%clk 00:27:57]}
{[%emt 00:00:18]} Ke5 {[%clk 00:17:29]} {[%emt 00:00:27]} 54. Re1+ {[%clk
00:20:32]} {[%emt 00:08:01]} Kd6 {[%clk 00:17:36]} {[%emt 00:00:16]} 55. Ra1
{[%clk 00:20:28]} {[%emt 00:01:09]} Rg3 {[%clk 00:17:41]} 56. Ra6+ {[%clk
00:20:50]} {[%emt 00:00:13]} Kc5 {[%clk 00:17:33]} {[%emt 00:00:29]} 57. Ra5+
{[%clk 00:20:50]} {[%emt 00:00:24]} Kb6 {[%clk 00:16:10]} {[%emt 00:01:53]} 58.
Ra6+ {[%clk 00:19:11]} {[%emt 00:02:41]} Kc5 {[%clk 00:15:46]} {[%emt
00:00:21]} 59. Ra5+ {[%clk 00:19:02]} {[%emt 00:00:39]} Kd6 {[%clk 00:16:09]}
{[%emt 00:00:39]} 60. Ra6+ {[%clk 00:16:22]} {[%emt 00:02:39]} Ke5 {[%clk
00:16:36]} {[%emt 00:00:23]} 61. Ra5 {[%clk 00:15:49]} {[%emt 00:00:59]} Kf6
{[%clk 00:17:03]} 62. Kd4 {[%clk 00:15:56]} {[%emt 00:00:13]} Bc6 {[%clk
00:13:16]} {[%emt 00:04:16]} 63. Ra6 {[%clk 00:15:16]} {[%emt 00:01:07]} Rxd3+
{[%clk 00:13:11]} {[%emt 00:00:34]} 0-1